Cogmind - Beta 12 @@@ ROGUE MODE // 2024.01.12 @ 01:56:54 Player: puppuppit Result: Destroyed by as-63661 with Assembled Heavy Rifle Performance ------------- Evolutions (0) 0 Regions Visited (2) 400 Robots Destroyed (46) 230 Value Destroyed (763) 763 Prototype IDs (5) 100 Alien Tech Used (0) 0 Bonus (0) 0 TOTAL SCORE: 1493 Bonus ------- None Cogmind --------- Core Integrity 0/250 Matter 300/300 Energy 100/100 System Corruption 2% Temperature Cool (20) Movement Rolling (80) Location -10/Mines Parts ------- > --- POWER (1) -------- (None) > --- PROPULSION (2) --- Wheel Wheel > --- UTILITY (2) ------ Medium Storage Unit Targeting Computer > --- WEAPON (2) ------- Heavy Assault Rifle > --- INVENTORY (10) --- Light Ion Engine Wheel Wheel Compact Wheel Structural Scanner Improved Terrain Scanner Hacking Suite Heavy Assault Rifle Datajack Peak State ------------ > --- POWER ------------ Light Nuclear Core > --- PROPULSION ------- Wheel Wheel > --- UTILITY ---------- Small Storage Unit Transport Network Coupler > --- WEAPON ----------- Heavy Assault Rifle Heavy Assault Rifle > --- INVENTORY -------- Light Nuclear Core Wheel Wheel Wheel Wheel Wheel Improved Terrain Scanner Seismic Detector [Rating: 12] Favorites ----------- Power Light Ion Engine Engine Light Ion Engine Power Core Light Nuclear Core Propulsion Wheel Wheel Wheel Utility Medium Storage Unit Device Improved Terrain Scanner Storage Medium Storage Unit Processor Transport Network Coupler Weapon Heavy Assault Rifle Ballistic Gun Heavy Assault Rifle Build | -11 -10 -10 ------- Run | Jun Mat Min Slots Evolved . | . . . Power . | . . . Propulsion . | . . . Utility . | . . . Weapon . | . . . Parts Attached 34 | 9 18 7 Power 9 | 2 5 2 Engine 7 | 2 3 2 Core 2 | . 2 . Reactor . | . . . Propulsion 11 | 2 6 3 Treads . | . . . Leg . | . . . Wheel 11 | 2 6 3 Hover . | . . . Flight . | . . . Utility 6 | 3 3 . Device 1 | 1 . . Storage 3 | 2 1 . Processor 2 | . 2 . Hackware . | . . . Protection . | . . . Artifact . | . . . Weapon 8 | 2 4 2 Energy Gun . | . . . Energy Cannon . | . . . Ballistic Gun 8 | 2 4 2 Ballistic Cannon . | . . . Launcher . | . . . Special Weapon . | . . . Impact Weapon . | . . . Slashing Weapon . | . . . Piercing Weapon . | . . . Special Melee Weapon . | . . . Unidentified Prototypes . | . . . Parts Lost 7 | . 1 6 Power 1 | . . 1 Propulsion 3 | . . 3 Utility . | . . . Weapon 3 | . 1 2 Highest Loss Streak 2 | . 1 2 To Critical Strikes . | . . . Average Slot Usage (%) 94 | . 94 96 Engine 6 | . 3 11 Core 3 | . 5 . Wheel 27 | . 28 27 Storage 14 | . 14 14 Processor 13 | . 12 14 Ballistic Gun 27 | . 27 28 Naked Turns . | . . . Heaviest Build 19 | 16 16 19 Greatest Support 20 | 20 20 20 Greatest Overweight (x) 1 | . 1 . Average Overweight (x) . | . . . Largest Inventory Capacity 10 | 8 10 10 Average Capacity 9 | 7 8 10 Most Carried 10 | 8 10 10 Average Carried 7 | 3 8 8 Final Capacity 10 | 8 10 10 Final Carried 10 | 8 10 9 Class Distribution -------------------- 77% | Mutant 22% | Scavenger-Mutant Dominant Class ---------------- Mutant | -10/Materials Mutant | -10/Mines Resources | -11 -10 -10 ----------- Run | Jun Mat Min Matter Collected 1208 | 358 489 361 Remotely . | . . . Salvage Created 1445 | 220 717 508 Parts 85 | 19 47 19 Haulers Intercepted 2 | . 2 . Recyclers Shooed 2 | . 1 1 Parts Field Recycled . | . . . Retrieved Matter . | . . . Parts Self-Destructed . | . . . Prevented . | . . . Kills | -11 -10 -10 ------- Run | Jun Mat Min Combat Hostiles Destroyed 21 | . 13 8 Guns 21 | . 13 8 Classes Destroyed 9 | 3 6 . Worker 9 | 2 2 5 Builder 2 | . 2 . Tunneler 6 | 5 . 1 Hauler 2 | . 2 . Recycler 3 | 1 . 2 Operator 1 | . 1 . Watcher 2 | . 2 . Swarmer 6 | . 3 3 Grunt 15 | . 10 5 Best Kill Streak 7 | 4 6 7 Combat Bots Only 5 | . 5 3 Max Kills in Single Turn 2 | 1 2 2 Gunslinging 1 | . . 1 Exploded . | . . . Melee . | . . . Uniques/NPCs Destroyed . | . . . Combat | -11 -10 -10 -------- Run | Jun Mat Min Damage Taken 1264 | . 565 699 Core 256 | . 123 133 Absorbed by Shields . | . . . Regen/Repaired (Parts) 27 | . 27 . Core Remaining (%) 100 | 100 . . Volleys Fired 136 | 17 71 48 Largest 2 | 2 2 2 Hottest 46 | 40 46 46 Shots Fired 271 | 34 141 96 Gun 271 | 34 141 96 Cannon . | . . . Launcher . | . . . Special . | . . . Kinetic 271 | 34 141 96 Thermal . | . . . Explosive . | . . . Electromagnetic . | . . . Robot Hit Streak 11 | 6 10 11 Robot Miss Streak 5 | 3 5 3 Penetration Max . | . . . Secondary Targets 2 | . . 2 Max Gunslinging Chain 1 | . . 1 Shots Hit Robots 156 | 17 73 66 Core Hits 65 | 11 34 20 Critical Kills 1 | . 1 . Critical Parts Destroyed 1 | . . 1 Critical Strikes 2 | . 1 1 Destroy 2 | . 1 1 Melee Attacks . | . . . Impact . | . . . Slashing . | . . . Piercing . | . . . Sneak Attacks . | . . . Combat Hostiles . | . . . Follow-up Attacks . | . . . Damage Inflicted 2190 | 212 959 1019 Guns 2188 | 212 959 1017 Cannons . | . . . Explosions . | . . . Melee . | . . . Ramming 2 | . . 2 Kinetic 2188 | 212 959 1017 Thermal . | . . . Explosive . | . . . Electromagnetic . | . . . Impact . | . . . Slashing . | . . . Piercing . | . . . Highest Corruption 2 | . 2 2 Average Corruption 2 | . 2 2 Corruption Purged . | . . . Corruption Blocked . | . . . Effects 13 | . 9 4 Message Errors 4 | . 2 2 Matter Fused 2 | . 1 1 Energy Discharges 2 | . 1 1 Parts Fused 1 | . 1 . Data Loss (minor) 1 | . 1 . Data Loss (major) 2 | . 2 . Alerts 1 | . 1 . Overload Shots . | . . . Overflow Damage . | . . . Projectiles . | . . . Explosions . | . . . Melee . | . . . Knockbacks . | . . . Impact . | . . . Kinetic . | . . . Secondary . | . . . Self-Inflicted Damage . | . . . Shots . | . . . Rammed 2 | . . 2 Targets Rammed 2 | . . 2 Kicked . | . . . Crushed . | . . . Highest Temperature 43 | . 43 29 Average Temperature 11 | . 12 9 Received Heat Transfer 530 | . 252 278 Siege Activations . | . . . Robots Corrupted . | . . . Combat Hostiles . | . . . Parts Fried . | . . . Impact Corruptions . | . . . Robots Melted . | . . . Combat Hostiles . | . . . Parts Melted 1 | . . 1 Heat Transferred . | . . . Parts Sabotaged . | . . . Parts Stolen . | . . . Parts Stripped . | . . . Power Chain Reactions . | . . . Missiles Intercepted . | . . . Alert | -11 -10 -10 ------- Run | Jun Mat Min Peak Influence 335 | 40 335 263 Initial 68 | . 26 68 Average 179 | 17 228 147 Maximum Alert Level 1 | . 1 1 Low Security (%) 56 | 100 32 83 Level 1 43 | . 67 16 Level 2 . | . . . Level 3 . | . . . Level 4 . | . . . Level 5 . | . . . High Security . | . . . Max Security . | . . . Squads Dispatched 3 | . 3 . Investigation 2 | . 2 . Extermination . | . . . Reinforcement 1 | . 1 . Assault . | . . . Garrison . | . . . Intercept . | . . . Searches Triggered . | . . . Construction Impeded . | . . . Haulers Reinforced . | . . . Active Scanning Responses . | . . . Cargo Convoy Interrupts . | . . . Stealth | -11 -10 -10 --------- Run | Jun Mat Min Distress Signals 1 | . 1 . Communications Jammed . | . . . Distress Signals . | . . . Times Spotted 46 | . 28 18 Peak Tracking Total 9 | . 6 9 Tactical Retreats 2 | . . 2 Traps | -11 -10 -10 ------- Run | Jun Mat Min Traps Triggered 2 | . 2 . Indirectly . | . . . Trap Hack Attempts . | . . . Triggered . | . . . Disarmed . | . . . Reprogrammed . | . . . Reused . | . . . Traps Extracted . | . . . Installed . | . . . Triggered 1 | . . 1 Machines | -11 -10 -10 ---------- Run | Jun Mat Min Machines Disabled 1 | . 1 . Max in Single Turn 1 | . 1 . Machines Repaired . | . . . Machines Sabotaged . | . . . Overloaded Fab Kills . | . . . Hacking | -11 -10 -10 --------- Run | Jun Mat Min Machines Accessed 7 | . 7 . Terminals 6 | . 6 . Fabricators . | . . . Repair Stations 1 | . 1 . Recycling Units . | . . . Scanalyzers . | . . . Garrison Access . | . . . Total Hacks 21 | . 21 . Successful 7 | . 7 . Failed 14 | . 14 . Catastrophic 3 | . 3 . Database Lockouts . | . . . Manual 7 | . 7 . Terminals 19 | . 19 . Fabricators . | . . . Repair Stations 2 | . 2 . Recycling Units . | . . . Scanalyzers . | . . . Garrison Access . | . . . Terminal Hacks 5 | . 5 . Prototype ID Bank 4 | . 4 . Alert Level 1 | . 1 . Fabricator Hacks . | . . . Repair Station Hacks 2 | . 2 . Scan Component 1 | . 1 . Repair 1 | . 1 . Recycling Unit Hacks . | . . . Scanalyzer . | . . . Garrison Access Hacks . | . . . Unauthorized Hacks . | . . . Terminals . | . . . Fabricators . | . . . Repair Stations . | . . . Recycling Units . | . . . Scanalyzers . | . . . Garrison Access . | . . . Data Cores Recovered . | . . . Used . | . . . Hacking Detections 7 | . 7 . Full Trace Events 4 | . 4 . Feedback Events . | . . . Feedback Blocked . | . . . Robot Schematics Acquired . | . . . Robots Built . | . . . Authchips . | . . . Time . | . . . Total Robot Build Rating . | . . . Part Schematics Acquired . | . . . Parts Built . | . . . Authchips . | . . . Time . | . . . Total Part Build Rating . | . . . Parts Repaired 1 | . 1 . Time 38 | . 38 . Parts Recycled . | . . . Recycled Matter . | . . . Retrieved Matter . | . . . Retrieved Components . | . . . Parts Scanalyzed . | . . . Part Schematics Acquired . | . . . Parts Damaged . | . . . Bothacking | -11 -10 -10 ------------ Run | Jun Mat Min Used RIF Installer . | . . . Robots Hacked . | . . . Non-combat . | . . . Combat . | . . . Robot Hacks Applied . | . . . Relay Couplers Released . | . . . Fabnet Peak Effective % . | . . . Robots Rewired . | . . . Allies Hacked . | . . . Hacks Repelled . | . . . Allies | -11 -10 -10 -------- Run | Jun Mat Min Total Allies . | . . . Largest Group . | . . . Highest-Rated Group . | . . . Highest-Rated Ally . | . . . Total Orders . | . . . Ally Attacks . | . . . Total Damage . | . . . Kills . | . . . Allies Corrupted . | . . . Allies Melted . | . . . Intel | -11 -10 -10 ------- Run | Jun Mat Min Robot Analysis Total . | . . . Derelict Logs Recovered 1 | . . 1 Drone Launches . | . . . Drone Recoveries . | . . . Exploration | -11 -10 -10 ------------- Run | Jun Mat Min Turns Passed 1463 | 162 832 469 Spaces Moved 1174 | 109 678 387 Core 1 | 1 . . Treads . | . . . Legs . | . . . Wheels 1173 | 108 678 387 Hover . | . . . Flight . | . . . Fastest Speed 50 | 50 80 80 Average Speed 79 | 79 80 80 Slowest Speed 95 | 80 95 80 Overloaded Moves . | . . . Propulsion Burnouts . | . . . Robots Hopped . | . . . Cave-ins Triggered . | . . . Exploration Rate (%) 52 | 4 97 56 Regions Visited 2 Branch Regions 1 Pre-discovered Areas . | . . . Known Exits Taken . | . . . Unknown Exits Taken 2 | 1 1 . Scrap Searched . | . . . Spaces Dug . | . . . Terrain Destroyed . | . . . Melee . | . . . Projectile . | . . . AOE . | . . . Terrain Rammed . | . . . Walls Destroyed . | . . . Machines Disabled . | . . . Actions | -11 -10 -10 --------- Run | Jun Mat Min Total 1448 | 151 847 450 Wait 44 | . 44 . Move 1172 | 108 677 387 Hop . | . . . Pick Up 28 | 12 12 4 Fast Attach 15 | 8 6 1 Attach 5 | 1 . 4 Detach 4 | . 4 . Swap 14 | . 12 2 Drop 28 | 5 21 2 Fire 136 | 17 71 48 Melee . | . . . Ram 2 | . . 2 Kick . | . . . Crush . | . . . Escape Stasis . | . . . Rewire . | . . . Trap . | . . . Miscellaneous . | . . . Route ------- -11/Junkyard -10/Materials (discovered 4 exits: [*Mat x3] / [*Min]) -10/Mines (discovered 2 exits: [*Mat x2]) History --------- Turn | Location | Event 11 | -11/Junkyard | Discovered new exit (range 16) 163 | -11/Junkyard | Entered Materials 196 | -10/Materials | Discovered new exit (range 16) 312 | -10/Materials | Build established: Mutant 508 | -10/Materials | Discovered new exit (range 10) 556 | -10/Materials | Discovered new exit (range 16) 657 | -10/Materials | Build established: Scavenger-Mutant 744 | -10/Materials | Repaired Lgt. Nuclear Core 798 | -10/Materials | Discovered new exit (range 15) 959 | -10/Materials | Build established: Mutant 995 | -10/Materials | Entered Mines 1009 | -10/Mines | Core integrity fell below 50% 1126 | -10/Mines | Discovered new exit (range 7) 1154 | -10/Mines | Discovered new exit (range 14) 1318 | -10/Mines | Core integrity fell below 20% 1447 | -10/Mines | Assembled infested the area 1464 | -10/Mines | Destroyed by as-63661 with Assembled Heavy Rifle Last Messages --------------- 01403_ G-34 Mercenary misfires. 01403_ Destroyed Sml. Laser. 01419_ G-34 Mercenary destroyed. 01419_ K-01 Serf collects debris. 01430_ Acquired 12 matter. 01431_ K-01 Serf collects debris. 01431_ Acquired 18 matter. 01432_ K-01 Serf collects debris. 01447_ ALERT: Infestation in the mines, dispatching Demolisher response squad. 01449_ Acquired derelict log, extracted data. Data stored: Storage entrances (x1). 01450_ A derelict is hurriedly installing traps. 01452_ 62-R0F(g): "Hehe, this'll put a wrench in their mining defense operations..." 01452_ 62-R0F(g) slips into the shadows. 01463_ Slammed into as-23173. 01463_ Hvy. Assault Rifle destroyed. 01464_ Slammed into as-83411. 01464_ Destabilizing: Core damaged (-12). 01464_ Lgt. Ion Engine destroyed. Map ----- +----------------------------------------------------+ | ???????????????????????????# % # | | ???????????????????????????# = * ## | | ???????????????????????????# ! ### | | ???????????????????????????## ## % * #?# | | ????????????????????????????####?## ##?# | | ?????????????????????????????????## ###??# | | ????????????????????????????????## ##????# | | ????????????????????????????????# ##????# | | ????????????????????????????????# ###### | | ??????????????????" #####??????# < ## | | ??????????????????" #";;;?##???# ## | | ???????????????????% ; ? #???## ### # | | ??????????????????? % ;;^? #????####?# # | | ???????????????????? % # #?????????## | | ????????????????????"" ; ; ???????????#### | | ?????????????????????" ; ??????????????## | | ?????????????????????# ???????????????## | | ?????????????????????? #????????????????## | | ??????????????????????# ! ?????????#####???## | | ??????????????????????? % ?????????## ####?## | | ???????????????????????# ????????## #### | | ???????????????????????# #????????# ## | | ???????????????????????#a #???###### = | | ???????????????????????#aa#??## ## | | ???????????????????????#aa#?## ## | | ??????????????????????##a@### #### # | | ??????????????????????# aa% ### ##??## ### | | ??????????????????????## a ##?## ##????####?? | | ???????????????????????#### ##???####??????????? | | ??????????????????????????#####??????????????????? | | ?????????????????????????????????????????????????? | | | | | | | | | | | | | | | | | | | | | | | | | | | | | | | | | | | | | | | +----------------------------------------------------+ Best States ------------- Heat Dissipation 25 Energy Generation 14 Energy Capacity 250 Matter Stores 300 Matter Capacity 300 Sight Range 16 Terrain Scan Range 16 Terrain Scan Density 10 Evasion (%) 44 Targeting Accuracy 5 Item Schematics ----------------- None Robot Schematics ------------------ None Fabricated ------------ Nothing Alien Tech Used ----------------- None Achievements -------------- None Challenges ------------ None Game ------ Seed BattleBlastTendrils Manual? 0 Play Time 00:22:06 Cumulative 46.1 hours Start 2024.01.12 @ 01:39:01 End 2024.01.12 @ 01:56:54 Sessions 1 Manual Loads 0 Difficulty Rogue Special Mode None Game No. 25 Rogue 25 Adventurer 0 Explorer 0 Win Type - Total 0 Types 0/0/0/0/0/0/0/0/0 Lore% 49 Gallery% 45 Achievement% 37 Wizard Run 0 Options --------- ASCII 0 Keyboard 1 Movement Arrows Keybinds 0 Fullscreen 1 Font 12/Proggy Map View 83x54 Tactical HUD 1 Map Filters NONE Filters NONE Steam 0 RUN: fadc6b18-4db0-4c0b-8be4-e2c414d444f3